[Event "9th RTU Open 2019"]
[Site "Riga"]
[Date "2019.08.06"]
[Round "2.5"]
[White "Larkin, Vladyslav"]
[Black "Gajewski, Grzegorz"]
[Result "0-1"]
[ECO "A48"]
[WhiteElo "2366"]
[BlackElo "2613"]
[Annotator "ChessBase"]
[PlyCount "138"]
[EventDate "2019.08.05"]
[EventType "swiss"]
[EventCountry "LAT"]
[SourceTitle "playchess.com"]
[Source "ChessBase"]
[SourceQuality "1"]
[TimeControl "5400+30"]

1. d4 {[%emt 0:00:00]} Nf6 {[%emt 0:00:00]} 2. Nf3 {[%emt 0:00:00]} g6 {[%emt 0:00:01]} 3. Bf4 {[%emt 0:00:38]} Bg7 {[%emt 0:00:19]} 4. h3 {[%emt 0:00:44]} O-O {[%emt 0:00:16]} 5. c3 {[%emt 0:00:19]} d6 {[%emt 0:01:03]} 6. Nbd2 {[%emt 0:00:10]} Nc6 {[%emt 0:00:42]} 7. Bh2 {[%emt 0:00:43]} Nd7 {[%emt 0:06:58]} 8. e4 {[%emt 0:09:37]} e5 {[%emt 0:00:37]} 9. dxe5 {[%emt 0:00:04]} Ndxe5 {[%emt 0:02:11]} 10. Nxe5 {[%emt 0:08:10]} dxe5 {[%emt 0:02:30]} 11. Bc4 {[%emt 0:01:16]} Qe7 {[%emt 0:08:20]} 12. O-O {[%emt 0:03:49]} Rd8 {[%emt 0:03:33]} 13. Qe2 {[%emt 0:00:38]} Bxh3 {[%emt 0:07:09]} 14. gxh3 {[%emt 0:05:10]} Qg5+ {[%emt 0:00:03]} 15. Qg4 {[%emt 0:00:04]} Qxg4+ {[%emt 0:00:49]} 16. hxg4 {[%emt 0:00:04]} Rxd2 {[%emt 0:00:07]} 17. Rad1 {[%emt 0:00:12]} Rad8 {[%emt 0:00:29]} 18. Bd5 {[%emt 0:00:17]} Rxd1 {[%emt 0:06:15]} 19. Rxd1 {[%emt 0:00:05]} Rd7 {[%emt 0:08:15]} 20. Rd3 {[%emt 0:11:22]} Kf8 {[%emt 0:05:05]} 21. Rf3 {[%emt 0:00:14]} Nd8 {[%emt 0:03:40]} 22. b4 {[%emt 0:01:17]} c6 {[%emt 0:00:33]} 23. Bb3 {[%emt 0:00:04]} Ke7 {[%emt 0:01:03]} 24. Kf1 {[%emt 0:10:27]} Ne6 {[%emt 0:03:57]} 25. Ke2 {[%emt 0:01:30]} Ng5 {[%emt 0:00:43]} 26. Re3 {[%emt 0:00:49]} Bf6 {[%emt 0:05:41]} 27. Bg3 {[%emt 0:22:56]} Rd8 {[%emt 0:04:49]} 28. Bh4 {[%emt 0:01:53]} Ne6 {[%emt 0:00:48]} 29. Bxf6+ {[%emt 0:00:38]} Kxf6 {[%emt 0:00:03]} 30. Bxe6 {[%emt 0:00:05]} Kxe6 {[%emt 0:02:35]} 31. Rh3 {[%emt 0:00:08]} Rh8 {[%emt 0:00:06]} 32. g5 {[%emt 0:04:15]} f6 {[%emt 0:01:33]} 33. gxf6 {[%emt 0:02:22]} Kxf6 {[%emt 0:00:19]} 34. Rf3+ {[%emt 0:00:29]} Ke6 {[%emt 0:00:09]} 35. Rg3 {[%emt 0:01:00]} Rg8 {[%emt 0:00:10]} 36. Ke3 {[%emt 0:01:35]} h5 {[%emt 0:00:30]} 37. Rg5 {[%emt 0:02:29]} Kf6 {[%emt 0:00:45]} 38. Rg1 {[%emt 0:02:47]} g5 {[%emt 0:01:53]} 39. Rh1 {[%emt 0:01:58]} h4 {[%emt 0:00:42]} 40. Rd1 {[%emt 0:03:38]} g4 {[%emt 0:03:17]} 41. Rd6+ {[%emt 0:03:16]} Ke7 {[%emt 0:00:16]} 42. Rh6 {[%emt 0:00:28]} g3 {[%emt 0:00:06]} 43. fxg3 {[%emt 0:00:04]} hxg3 {[%emt 0:00:08]} 44. Rh1 {[%emt 0:00:08]} g2 {[%emt 0:05:08]} 45. Rg1 {[%emt 0:00:04]} Rg3+ {[%emt 0:00:04]} 46. Kf2 {[%emt 0:00:05]} Rxc3 {[%emt 0:00:04]} 47. Kxg2 {[%emt 0:00:04]} Rc4 {[%emt 0:00:07]} 48. a3 {[%emt 0:00:44]} Rxe4 {[%emt 0:00:20]} 49. Kf3 {[%emt 0:00:03]} Rf4+ {[%emt 0:00:06]} 50. Ke3 {[%emt 0:00:03]} a5 {[%emt 0:03:39]} 51. bxa5 {[%emt 0:01:01]} Ra4 {[%emt 0:00:03]} 52. Rg7+ {[%emt 0:00:10]} Kd6 {[%emt 0:00:05]} 53. Rxb7 {[%emt 0:00:08]} Rxa3+ {[%emt 0:00:05]} 54. Ke4 {[%emt 0:01:20]} Rxa5 {[%emt 0:00:10]} 55. Rb8 {[%emt 0:02:23]} Ra4+ {[%emt 0:00:07]} 56. Ke3 {[%emt 0:00:05]} c5 {[%emt 0:02:36]} 57. Rd8+ {[%emt 0:00:15]} Kc6 {[%emt 0:00:09]} 58. Rc8+ {[%emt 0:01:30]} Kd5 {[%emt 0:00:06]} 59. Rd8+ {[%emt 0:00:05]} Kc4 {[%emt 0:00:05]} 60. Ke4 {[%emt 0:03:10]} Kc3+ {[%emt 0:01:18]} 61. Kxe5 {[%emt 0:00:31]} Rh4 {[%emt 0:00:08]} 62. Rg8 {[%emt 0:00:18]} c4 {[%emt 0:00:09]} 63. Kd5 {[%emt 0:00:40]} Kb3 {[%emt 0:00:20]} 64. Rb8+ {[%emt 0:00:14]} Kc2 {[%emt 0:00:03]} 65. Rb4 {[%emt 0:01:03]} Kd3 {[%emt 0:00:05]} 66. Ke5 {[%emt 0:00:27]} Rh5+ {[%emt 0:00:21]} 67. Kf4 {[%emt 0:00:08]} c3 {[%emt 0:00:04]} 68. Rb8 {[%emt 0:00:37]} c2 {[%emt 0:00:57]} 69. Rc8 {[%emt 0:00:35]} Rh4+ {[%emt 0:00:08]} 0-1

[Event "9th RTU Open 2019"]
[Site "Riga"]
[Date "2019.08.06"]
[Round "2.6"]
[White "Svane, Rasmus"]
[Black "Zhalmakhanov, Ramazan"]
[Result "1-0"]
[ECO "A07"]
[WhiteElo "2610"]
[BlackElo "2366"]
[Annotator "ChessBase"]
[PlyCount "79"]
[EventDate "2019.08.05"]
[EventType "swiss"]
[EventCountry "LAT"]
[SourceTitle "playchess.com"]
[Source "ChessBase"]
[SourceQuality "1"]
[TimeControl "5400+30"]

1. Nf3 {[%emt 0:00:00]} Nf6 {[%emt 0:00:15]} 2. g3 {[%emt 0:01:04]} d5 {[%emt 0:02:14]} 3. Bg2 {[%emt 0:00:09]} Bf5 {[%emt 0:00:42]} 4. O-O {[%emt 0:01:30]} e6 {[%emt 0:00:27]} 5. c4 {[%emt 0:00:32]} Nbd7 {[%emt 0:02:12]} 6. Nc3 {[%emt 0:08:36]} c6 {[%emt 0:02:06]} 7. cxd5 {[%emt 0:01:05]} cxd5 {[%emt 0:06:38]} 8. Qb3 {[%emt 0:07:47]} Qb6 {[%emt 0:19:11]} 9. Qxb6 {[%emt 0:03:15]} axb6 {[%emt 0:00:08]} 10. Nb5 {[%emt 0:04:49]} Rc8 {[%emt 0:01:09]} 11. d3 {[%emt 0:00:02]} e5 {[%emt 0:09:00]} 12. Bg5 {[%emt 0:04:44]} Be7 {[%emt 0:01:54]} 13. Rac1 {[%emt 0:09:16]} O-O {[%emt 0:00:59]} 14. Bxf6 {[%emt 0:00:48]} gxf6 {[%emt 0:01:43]} 15. Nc7 {[%emt 0:01:27]} Be6 {[%emt 0:09:00]} 16. Nd2 {[%emt 0:07:17]} Bb4 {[%emt 0:03:48]} 17. Nb3 {[%emt 0:15:30]} Nc5 {[%emt 0:01:38]} 18. Nxd5 {[%emt 0:01:02]} Nxb3 {[%emt 0:00:25]} 19. axb3 {[%emt 0:00:26]} Bc5 {[%emt 0:03:42]} 20. b4 {[%emt 0:05:29]} Bxd5 {[%emt 0:01:09]} 21. Bxd5 {[%emt 0:00:03]} Bxb4 {[%emt 0:00:19]} 22. Bxb7 {[%emt 0:00:06]} Rc5 {[%emt 0:01:49]} 23. Rc4 {[%emt 0:04:17]} Rxc4 {[%emt 0:03:29]} 24. dxc4 {[%emt 0:00:01]} Rd8 {[%emt 0:00:41]} 25. Bd5 {[%emt 0:00:20]} f5 {[%emt 0:01:25]} 26. Ra1 {[%emt 0:01:29]} Rd7 {[%emt 0:01:06]} 27. Ra6 {[%emt 0:02:30]} Bc5 {[%emt 0:00:59]} 28. b4 {[%emt 0:03:27]} Bxb4 {[%emt 0:00:18]} 29. Rxb6 {[%emt 0:00:04]} Be7 {[%emt 0:00:41]} 30. Kg2 {[%emt 0:00:43]} Kg7 {[%emt 0:00:12]} 31. Kf3 {[%emt 0:02:00]} Ra7 {[%emt 0:00:47]} 32. e3 {[%emt 0:06:04]} h5 {[%emt 0:02:18]} 33. Rb5 {[%emt 0:03:30]} Ra2 {[%emt 0:05:41]} 34. c5 {[%emt 0:01:26]} Rc2 {[%emt 0:00:14]} 35. c6 {[%emt 0:00:07]} e4+ {[%emt 0:02:34]} 36. Kg2 {[%emt 0:00:05]} h4 {[%emt 0:00:24]} 37. Rb7 {[%emt 0:02:09]} Kf6 {[%emt 0:00:07]} 38. gxh4 {[%emt 0:01:58]} Bd6 {[%emt 0:00:38]} 39. h5 {[%emt 0:01:06]} Ke5 {[%emt 0:02:39]} 40. h6 {[%emt 0:01:13]} 1-0

[Event "9th RTU Open 2019"]
[Site "Riga"]
[Date "2019.08.06"]
[Round "2.7"]
[White "Baum, Jonasz"]
[Black "Smirin, Ilia"]
[Result "1-0"]
[ECO "E62"]
[WhiteElo "2358"]
[BlackElo "2605"]
[Annotator "ChessBase"]
[PlyCount "95"]
[EventDate "2019.08.05"]
[EventType "swiss"]
[EventCountry "LAT"]
[SourceTitle "playchess.com"]
[Source "ChessBase"]
[SourceQuality "1"]
[TimeControl "5400+30"]

1. d4 {[%emt 0:00:00]} Nf6 {[%emt 0:06:05]} 2. c4 {[%emt 0:00:00]} g6 {[%emt 0:00:08]} 3. Nf3 {[%emt 0:00:00]} Bg7 {[%emt 0:00:08]} 4. g3 {[%emt 0:00:05]} O-O {[%emt 0:01:21]} 5. Bg2 {[%emt 0:00:04]} d6 {[%emt 0:00:04]} 6. O-O {[%emt 0:00:11]} Nc6 {[%emt 0:00:03]} 7. Nc3 {[%emt 0:00:06]} Bf5 {[%emt 0:00:17]} 8. Ne1 {[%emt 0:00:16]} a6 {[%emt 0:04:11]} 9. e4 {[%emt 0:03:24]} Bg4 {[%emt 0:00:28]} 10. f3 {[%emt 0:00:33]} Bd7 {[%emt 0:00:06]} 11. Be3 {[%emt 0:02:34]} e5 {[%emt 0:04:41]} 12. d5 {[%emt 0:07:10]} Nd4 {[%emt 0:05:08]} 13. Nc2 {[%emt 0:01:30]} Nxc2 {[%emt 0:00:56]} 14. Qxc2 {[%emt 0:00:02]} Nh5 {[%emt 0:00:07]} 15. c5 {[%emt 0:13:17]} f5 {[%emt 0:00:19]} 16. exf5 {[%emt 0:00:52]} gxf5 {[%emt 0:00:08]} 17. Bf2 {[%emt 0:00:37]} e4 {[%emt 0:09:48]} 18. fxe4 {[%emt 0:10:01]} f4 {[%emt 0:00:58]} 19. gxf4 {[%emt 0:08:46]} Nxf4 {[%emt 0:15:27]} 20. Bg3 {[%emt 0:01:27]} Qg5 {[%emt 0:00:12]} 21. Ne2 {[%emt 0:09:23]} Nxe2+ {[%emt 0:08:00]} 22. Qxe2 {[%emt 0:00:02]} Rxf1+ {[%emt 0:00:09]} 23. Qxf1 {[%emt 0:03:48]} Bxb2 {[%emt 0:04:20]} 24. Rb1 {[%emt 0:04:48]} Bd4+ {[%emt 0:10:28]} 25. Kh1 {[%emt 0:00:08]} Rf8 {[%emt 0:00:06]} 26. Qe1 {[%emt 0:03:26]} Bxc5 {[%emt 0:00:29]} 27. Rxb7 {[%emt 0:00:30]} Bb6 {[%emt 0:01:35]} 28. e5 {[%emt 0:04:40]} dxe5 {[%emt 0:02:10]} 29. d6 {[%emt 0:01:34]} Bd4 {[%emt 0:00:06]} 30. dxc7 {[%emt 0:06:00]} Bc8 {[%emt 0:01:59]} 31. Rb8 {[%emt 0:01:48]} Qe7 {[%emt 0:04:12]} 32. Qc1 {[%emt 0:01:53]} Kg7 {[%emt 0:00:12]} 33. h3 {[%emt 0:09:19]} h6 {[%emt 0:03:17]} 34. Kh2 {[%emt 0:02:33]} Qe6 {[%emt 0:00:31]} 35. Qc6 {[%emt 0:01:45]} Qe7 {[%emt 0:06:18]} 36. Qe4 {[%emt 0:01:48]} h5 {[%emt 0:00:12]} 37. Qh4 {[%emt 0:00:29]} Qe6 {[%emt 0:02:42]} 38. Qg5+ {[%emt 0:00:41]} Kf7 {[%emt 0:00:06]} 39. Qxh5+ {[%emt 0:00:44]} Ke7 {[%emt 0:00:10]} 40. Qh7+ {[%emt 0:00:51]} Kd6 {[%emt 0:00:33]} 41. Qe4 {[%emt 0:01:41]} Qc4 {[%emt 0:00:05]} 42. Rb6+ {[%emt 0:00:21]} Kd7 {[%emt 0:00:38]} 43. Rc6 {[%emt 0:01:19]} Qf7 {[%emt 0:03:28]} 44. Rc1 {[%emt 0:00:51]} Rg8 {[%emt 0:01:55]} 45. Qc6+ {[%emt 0:00:19]} Ke7 {[%emt 0:00:03]} 46. Bh4+ {[%emt 0:00:06]} Kf8 {[%emt 0:00:03]} 47. Rf1 {[%emt 0:00:23]} Rxg2+ {[%emt 0:00:12]} 48. Qxg2 {[%emt 0:00:05]} 1-0

[Event "9th RTU Open 2019"]
[Site "Riga"]
[Date "2019.08.06"]
[Round "2.8"]
[White "Gopal G.N."]
[Black "Saveliev, Alexei"]
[Result "1-0"]
[ECO "C10"]
[WhiteElo "2594"]
[BlackElo "2355"]
[Annotator "ChessBase"]
[PlyCount "95"]
[EventDate "2019.08.05"]
[EventType "swiss"]
[EventCountry "LAT"]
[SourceTitle "playchess.com"]
[Source "ChessBase"]
[SourceQuality "1"]
[TimeControl "5400+30"]

1. e4 {[%emt 0:00:00]} e6 {[%emt 0:00:00]} 2. d4 {[%emt 0:00:00]} d5 {[%emt 0:00:00]} 3. Nd2 {[%emt 0:00:23]} dxe4 {[%emt 0:00:00]} 4. Nxe4 {[%emt 0:00:03]} Nd7 {[%emt 0:00:00]} 5. Nf3 {[%emt 0:01:00]} Ngf6 {[%emt 0:04:30]} 6. Nxf6+ {[%emt 0:00:06]} Nxf6 {[%emt 0:00:07]} 7. Be3 {[%emt 0:01:22]} Bd6 {[%emt 0:00:43]} 8. Bd3 {[%emt 0:00:37]} b6 {[%emt 0:00:11]} 9. Qe2 {[%emt 0:04:20]} Bb7 {[%emt 0:12:46]} 10. Bg5 {[%emt 0:20:29]} h6 {[%emt 0:15:05]} 11. Bh4 {[%emt 0:01:07]} Qe7 {[%emt 0:00:29]} 12. O-O-O {[%emt 0:02:20]} O-O-O {[%emt 0:15:02]} 13. Ba6 {[%emt 0:05:41]} g5 {[%emt 0:16:43]} 14. Bg3 {[%emt 0:00:21]} Nd5 {[%emt 0:00:04]} 15. Ne5 {[%emt 0:13:15]} Bxe5 {[%emt 0:01:17]} 16. Bxe5 {[%emt 0:00:58]} f6 {[%emt 0:08:39]} 17. Bg3 {[%emt 0:00:54]} Qd7 {[%emt 0:01:10]} 18. Rhe1 {[%emt 0:08:59]} Rhe8 {[%emt 0:00:05]} 19. Bc4 {[%emt 0:10:14]} Kb8 {[%emt 0:05:00]} 20. f3 {[%emt 0:00:50]} a5 {[%emt 0:00:31]} 21. a3 {[%emt 0:01:15]} f5 {[%emt 0:04:44]} 22. Be5 {[%emt 0:03:55]} f4 {[%emt 0:00:44]} 23. Bxd5 {[%emt 0:03:36]} exd5 {[%emt 0:00:19]} 24. h4 {[%emt 0:01:45]} Ka7 {[%emt 0:02:11]} 25. Qd2 {[%emt 0:01:16]} Ba6 {[%emt 0:02:41]} 26. hxg5 {[%emt 0:02:24]} hxg5 {[%emt 0:00:01]} 27. Rh1 {[%emt 0:01:01]} c5 {[%emt 0:04:42]} 28. Rh5 {[%emt 0:07:18]} Qf5 {[%emt 0:00:52]} 29. g4 {[%emt 0:01:21]} fxg3 {[%emt 0:01:42]} 30. Rxg5 {[%emt 0:00:02]} Qxf3 {[%emt 0:01:08]} 31. Rxg3 {[%emt 0:05:04]} Qf5 {[%emt 0:00:10]} 32. Rg5 {[%emt 0:00:53]} Qc8 {[%emt 0:02:11]} 33. dxc5 {[%emt 0:01:16]} Qxc5 {[%emt 0:00:22]} 34. Bd4 {[%emt 0:00:14]} Qc6 {[%emt 0:01:20]} 35. Qxa5 {[%emt 0:02:14]} Rd7 {[%emt 0:00:14]} 36. Qc3 {[%emt 0:00:49]} Qh6 {[%emt 0:00:25]} 37. Rdg1 {[%emt 0:00:25]} Rde7 {[%emt 0:01:46]} 38. Kb1 {[%emt 0:00:30]} Re1+ {[%emt 0:00:33]} 39. Ka2 {[%emt 0:00:33]} Rxg1 {[%emt 0:00:24]} 40. Rxg1 {[%emt 0:00:01]} Qd6 {[%emt 0:00:36]} 41. Kb1 {[%emt 0:00:59]} Re7 {[%emt 0:00:32]} 42. a4 {[%emt 0:00:32]} Kb7 {[%emt 0:00:28]} 43. b3 {[%emt 0:00:11]} Rc7 {[%emt 0:00:21]} 44. Qd2 {[%emt 0:00:03]} b5 {[%emt 0:00:28]} 45. axb5 {[%emt 0:00:43]} Bxb5 {[%emt 0:00:04]} 46. Kb2 {[%emt 0:00:04]} Bd7 {[%emt 0:00:54]} 47. Qa5 {[%emt 0:01:06]} Bf5 {[%emt 0:00:09]} 48. Qb5+ {[%emt 0:00:26]} 1-0

[Event "9th RTU Open 2019"]
[Site "Riga"]
[Date "2019.08.06"]
[Round "2.9"]
[White "Narva, Mai"]
[Black "Dastan, Muhammed Batuhan"]
[Result "0-1"]
[ECO "B51"]
[WhiteElo "2358"]
[BlackElo "2565"]
[Annotator "ChessBase"]
[PlyCount "80"]
[EventDate "2019.08.05"]
[EventType "swiss"]
[EventCountry "LAT"]
[SourceTitle "playchess.com"]
[Source "ChessBase"]
[SourceQuality "1"]
[TimeControl "5400+30"]

1. e4 {[%emt 0:00:00]} c5 {[%emt 0:00:00]} 2. Nf3 {[%emt 0:00:00]} d6 {[%emt 0:00:00]} 3. Bb5+ {[%emt 0:00:00]} Nd7 {[%emt 0:00:00]} 4. d4 {[%emt 0:00:46]} Ngf6 {[%emt 0:00:16]} 5. Nc3 {[%emt 0:01:40]} cxd4 {[%emt 0:00:22]} 6. Qxd4 {[%emt 0:00:14]} e5 {[%emt 0:00:14]} 7. Qd3 {[%emt 0:01:34]} h6 {[%emt 0:00:17]} 8. O-O {[%emt 0:04:15]} Be7 {[%emt 0:04:41]} 9. Bxd7+ {[%emt 0:05:57]} Bxd7 {[%emt 0:22:34]} 10. Nd2 {[%emt 0:03:02]} Be6 {[%emt 0:02:22]} 11. Nc4 {[%emt 0:04:18]} Rc8 {[%emt 0:03:25]} 12. Ne3 {[%emt 0:00:54]} Qc7 {[%emt 0:07:16]} 13. Rd1 {[%emt 0:30:27]} O-O {[%emt 0:07:48]} 14. a4 {[%emt 0:06:33]} Qc5 {[%emt 0:07:39]} 15. a5 {[%emt 0:07:22]} a6 {[%emt 0:03:48]} 16. Bd2 {[%emt 0:03:10]} Qd4 {[%emt 0:02:26]} 17. Be1 {[%emt 0:01:20]} Qxd3 {[%emt 0:00:14]} 18. Rxd3 {[%emt 0:01:23]} g6 {[%emt 0:07:20]} 19. f3 {[%emt 0:01:58]} Nd7 {[%emt 0:00:41]} 20. b4 {[%emt 0:08:08]} f5 {[%emt 0:02:12]} 21. Ned5 {[%emt 0:12:55]} Bd8 {[%emt 0:14:41]} 22. Bd2 {[%emt 0:01:01]} g5 {[%emt 0:00:25]} 23. Kh1 {[%emt 0:00:58]} Rc6 {[%emt 0:02:45]} 24. Rd1 {[%emt 0:02:48]} Bxd5 {[%emt 0:03:04]} 25. Rxd5 {[%emt 0:01:08]} Nf6 {[%emt 0:04:11]} 26. Rd3 {[%emt 0:00:26]} fxe4 {[%emt 0:00:36]} 27. Nxe4 {[%emt 0:00:23]} Nxe4 {[%emt 0:00:04]} 28. fxe4 {[%emt 0:00:05]} Be7 {[%emt 0:00:23]} 29. c3 {[%emt 0:00:48]} Rc4 {[%emt 0:00:04]} 30. Re1 {[%emt 0:00:26]} Rxe4 {[%emt 0:02:26]} 31. Be3 {[%emt 0:00:40]} Kf7 {[%emt 0:00:47]} 32. h3 {[%emt 0:00:41]} Ke6 {[%emt 0:00:54]} 33. Red1 {[%emt 0:00:17]} h5 {[%emt 0:00:40]} 34. Bb6 {[%emt 0:00:33]} Rc4 {[%emt 0:00:17]} 35. Re1 {[%emt 0:00:45]} Rfc8 {[%emt 0:00:30]} 36. Ree3 {[%emt 0:00:22]} g4 {[%emt 0:00:11]} 37. hxg4 {[%emt 0:00:27]} hxg4 {[%emt 0:00:11]} 38. Kg1 {[%emt 0:00:19]} Bg5 {[%emt 0:00:16]} 39. Rg3 {[%emt 0:00:52]} Bf4 {[%emt 0:00:18]} 40. Rxg4 {[%emt 0:00:24]} Bh2+ {[%emt 0:00:21]} 0-1

[Event "9th RTU Open 2019"]
[Site "Riga"]
[Date "2019.08.06"]
[Round "2.10"]
[White "Wagner, Dennis"]
[Black "Lazavik, Denis"]
[Result "1/2-1/2"]
[ECO "C90"]
[WhiteElo "2579"]
[BlackElo "2347"]
[Annotator "ChessBase"]
[PlyCount "104"]
[EventDate "2019.08.05"]
[EventType "swiss"]
[EventCountry "LAT"]
[SourceTitle "playchess.com"]
[Source "ChessBase"]
[SourceQuality "1"]
[TimeControl "5400+30"]

1. e4 {[%emt 0:00:00]} e5 {[%emt 0:00:00]} 2. Nf3 {[%emt 0:00:00]} Nc6 {[%emt 0:00:14]} 3. Bb5 {[%emt 0:00:00]} a6 {[%emt 0:00:29]} 4. Ba4 {[%emt 0:00:00]} Nf6 {[%emt 0:00:22]} 5. O-O {[%emt 0:00:00]} Be7 {[%emt 0:00:37]} 6. Re1 {[%emt 0:00:00]} b5 {[%emt 0:00:17]} 7. Bb3 {[%emt 0:00:00]} d6 {[%emt 0:00:33]} 8. a4 {[%emt 0:00:03]} Bg4 {[%emt 0:04:52]} 9. c3 {[%emt 0:00:09]} O-O {[%emt 0:03:34]} 10. h3 {[%emt 0:00:02]} Bxf3 {[%emt 0:02:25]} 11. Qxf3 {[%emt 0:00:04]} Na5 {[%emt 0:01:47]} 12. Bc2 {[%emt 0:00:01]} c5 {[%emt 0:00:21]} 13. axb5 {[%emt 0:02:47]} axb5 {[%emt 0:00:57]} 14. d3 {[%emt 0:00:10]} b4 {[%emt 0:13:14]} 15. Nd2 {[%emt 0:16:40]} Nd7 {[%emt 0:14:29]} 16. Nf1 {[%emt 0:05:33]} Bg5 {[%emt 0:03:00]} 17. Ne3 {[%emt 0:00:39]} Bxe3 {[%emt 0:02:59]} 18. Bxe3 {[%emt 0:00:21]} bxc3 {[%emt 0:13:52]} 19. bxc3 {[%emt 0:00:26]} Qc7 {[%emt 0:00:59]} 20. Ra2 {[%emt 0:16:21]} Nc6 {[%emt 0:08:08]} 21. Rxa8 {[%emt 0:02:03]} Rxa8 {[%emt 0:00:29]} 22. Bb3 {[%emt 0:00:02]} Nb6 {[%emt 0:00:43]} 23. Rb1 {[%emt 0:01:51]} Nd8 {[%emt 0:02:29]} 24. Qd1 {[%emt 0:14:50]} Rb8 {[%emt 0:03:06]} 25. Ba2 {[%emt 0:04:12]} Qa7 {[%emt 0:03:23]} 26. Rb2 {[%emt 0:06:06]} Ra8 {[%emt 0:02:28]} 27. Bb3 {[%emt 0:04:04]} Qc7 {[%emt 0:05:54]} 28. Ra2 {[%emt 0:08:40]} Rxa2 {[%emt 0:03:32]} 29. Bxa2 {[%emt 0:00:01]} Nd7 {[%emt 0:00:15]} 30. Qa4 {[%emt 0:00:34]} h6 {[%emt 0:00:28]} 31. f4 {[%emt 0:07:57]} exf4 {[%emt 0:01:31]} 32. Bxf4 {[%emt 0:00:01]} Ne6 {[%emt 0:00:43]} 33. Bg3 {[%emt 0:01:04]} Kh7 {[%emt 0:01:24]} 34. Qa6 {[%emt 0:04:02]} Nb6 {[%emt 0:00:27]} 35. Kh2 {[%emt 0:00:23]} Nd8 {[%emt 0:01:17]} 36. Qb5 {[%emt 0:02:13]} Nd7 {[%emt 0:00:13]} 37. d4 {[%emt 0:00:40]} cxd4 {[%emt 0:01:37]} 38. cxd4 {[%emt 0:00:11]} Nf6 {[%emt 0:00:34]} 39. Bb1 {[%emt 0:02:27]} Kg8 {[%emt 0:00:28]} 40. Qa6 {[%emt 0:02:32]} Ne8 {[%emt 0:00:45]} 41. Qa8 {[%emt 0:00:29]} Kf8 {[%emt 0:00:45]} 42. Bd3 {[%emt 0:00:26]} Ne6 {[%emt 0:01:07]} 43. Bb5 {[%emt 0:00:28]} Qd8 {[%emt 0:00:06]} 44. Qa4 {[%emt 0:02:48]} Nf6 {[%emt 0:00:41]} 45. Bc6 {[%emt 0:00:22]} Nh5 {[%emt 0:00:34]} 46. Bf2 {[%emt 0:00:31]} Nf6 {[%emt 0:00:41]} 47. Qb4 {[%emt 0:00:37]} Kg8 {[%emt 0:01:42]} 48. d5 {[%emt 0:00:13]} Ng5 {[%emt 0:00:29]} 49. e5 {[%emt 0:00:05]} Nfe4 {[%emt 0:00:28]} 50. Bh4 {[%emt 0:00:56]} Nf3+ 51. gxf3 {[%emt 0:00:06]} Qxh4 {[%emt 0:00:28]} 52. Qxe4 {[%emt 0:01:08]} Qf2+ {[%emt 0:00:06]} 1/2-1/2

[Event "9th RTU Open 2019"]
[Site "Riga"]
[Date "2019.08.06"]
[Round "2.11"]
[White "Kramer, Julian"]
[Black "Lalith Babu M R"]
[Result "1-0"]
[ECO "C54"]
[WhiteElo "2352"]
[BlackElo "2580"]
[Annotator "ChessBase"]
[PlyCount "115"]
[EventDate "2019.08.05"]
[EventType "swiss"]
[EventCountry "LAT"]
[SourceTitle "playchess.com"]
[Source "ChessBase"]
[SourceQuality "1"]
[TimeControl "5400+30"]

1. e4 {[%emt 0:00:00]} e5 {[%emt 0:00:00]} 2. Nf3 {[%emt 0:00:00]} Nc6 {[%emt 0:00:00]} 3. Bc4 {[%emt 0:00:00]} Bc5 {[%emt 0:00:00]} 4. O-O {[%emt 0:00:04]} Nf6 {[%emt 0:00:00]} 5. d3 {[%emt 0:00:08]} a6 {[%emt 0:00:20]} 6. c3 {[%emt 0:00:56]} d6 {[%emt 0:00:07]} 7. a4 {[%emt 0:00:13]} Ba7 {[%emt 0:00:07]} 8. Nbd2 {[%emt 0:00:45]} O-O {[%emt 0:03:15]} 9. h3 {[%emt 0:00:15]} Be6 {[%emt 0:08:50]} 10. Re1 {[%emt 0:05:31]} Nh5 {[%emt 0:15:35]} 11. Nf1 {[%emt 0:14:31]} Bxc4 {[%emt 0:05:58]} 12. dxc4 {[%emt 0:00:05]} Qf6 {[%emt 0:01:01]} 13. Be3 {[%emt 0:10:37]} Nf4 {[%emt 0:02:46]} 14. Bxa7 {[%emt 0:00:30]} Rxa7 {[%emt 0:00:12]} 15. Kh2 {[%emt 0:03:42]} Ne7 {[%emt 0:05:05]} 16. g3 {[%emt 0:02:52]} Ne6 {[%emt 0:07:22]} 17. a5 {[%emt 0:11:06]} g6 {[%emt 0:02:04]} 18. Ne3 {[%emt 0:00:57]} Qg7 {[%emt 0:00:15]} 19. Kg2 {[%emt 0:03:14]} f5 {[%emt 0:02:59]} 20. Nd5 {[%emt 0:00:20]} Raa8 {[%emt 0:00:18]} 21. b4 {[%emt 0:01:01]} Kh8 {[%emt 0:03:13]} 22. Ra2 {[%emt 0:05:52]} fxe4 {[%emt 0:02:38]} 23. Nd2 {[%emt 0:03:01]} Nxd5 {[%emt 0:07:22]} 24. cxd5 {[%emt 0:00:06]} Ng5 {[%emt 0:00:03]} 25. Nxe4 {[%emt 0:00:57]} Nxe4 {[%emt 0:00:06]} 26. Rxe4 {[%emt 0:00:05]} Rf5 {[%emt 0:00:02]} 27. Rae2 {[%emt 0:06:26]} Raf8 {[%emt 0:00:05]} 28. c4 {[%emt 0:00:11]} Qd7 {[%emt 0:04:00]} 29. h4 {[%emt 0:02:51]} g5 {[%emt 0:00:29]} 30. Qc2 {[%emt 0:04:30]} gxh4 {[%emt 0:01:28]} 31. Rxh4 {[%emt 0:00:13]} Qf7 {[%emt 0:00:03]} 32. Kg1 {[%emt 0:00:36]} Qg7 {[%emt 0:00:59]} 33. Qe4 {[%emt 0:03:14]} Qg5 {[%emt 0:02:31]} 34. Rc2 {[%emt 0:03:19]} h5 {[%emt 0:03:00]} 35. c5 {[%emt 0:01:36]} R8f7 {[%emt 0:03:01]} 36. c6 {[%emt 0:04:48]} bxc6 {[%emt 0:00:07]} 37. dxc6 {[%emt 0:00:03]} Rf4 {[%emt 0:00:43]} 38. Rxf4 {[%emt 0:00:12]} exf4 {[%emt 0:01:02]} 39. Rc3 {[%emt 0:01:22]} h4 {[%emt 0:08:57]} 40. Rf3 {[%emt 0:00:43]} hxg3 {[%emt 0:00:31]} 41. fxg3 {[%emt 0:00:07]} Re7 {[%emt 0:04:26]} 42. Qxf4 {[%emt 0:01:47]} Re1+ {[%emt 0:00:04]} 43. Kf2 {[%emt 0:01:30]} Qxf4 {[%emt 0:00:14]} 44. gxf4 {[%emt 0:03:08]} Rb1 {[%emt 0:02:20]} 45. Re3 {[%emt 0:01:59]} Rxb4 {[%emt 0:00:05]} 46. Kf3 {[%emt 0:00:25]} Rb5 {[%emt 0:01:48]} 47. Re7 {[%emt 0:00:18]} Rxa5 {[%emt 0:00:03]} 48. Rxc7 {[%emt 0:00:04]} Rc5 {[%emt 0:00:03]} 49. Kg4 {[%emt 0:03:06]} Kg8 {[%emt 0:00:09]} 50. f5 {[%emt 0:00:10]} Kf8 {[%emt 0:00:05]} 51. Kg5 {[%emt 0:00:22]} Ke8 {[%emt 0:00:57]} 52. Kg6 {[%emt 0:00:23]} Kd8 {[%emt 0:00:06]} 53. Rd7+ {[%emt 0:01:40]} Kc8 {[%emt 0:00:06]} 54. Rxd6 {[%emt 0:00:36]} Kc7 {[%emt 0:00:03]} 55. Re6 {[%emt 0:00:07]} Rc1 {[%emt 0:00:42]} 56. f6 {[%emt 0:00:09]} Rg1+ {[%emt 0:00:11]} 57. Kh7 {[%emt 0:00:11]} Rf1 {[%emt 0:01:09]} 58. Kg7 {[%emt 0:00:07]} 1-0